{"text_format":"1","workbook":"xlsx","n_sheets":3,"sheets":["Steuerung","Auswertung","Aufträge"],"not_rendered":{"charts":2,"images":1,"macros":1,"external_links":0,"defined_names":0,"comments":0,"pivot_tables":0},"unopened":[],"bounds":{"document_bytes":16777216,"sheet_cells":100000,"rows_first":2000,"rows_last":500,"rows_between":2000,"halvings":0,"cell_chars":16384,"cell_head_chars":4096},"cells_cut":0,"cells_raw":0,"read":"whole","date_system":"1900"}

{"sheet":"Steuerung","index":0,"n_rows":28,"n_cols":9,"rows_kept":28,"cut":false,"hidden":false,"merged":[[5,8,6,8],[8,8,20,8],[22,8,27,8],[9,6,10,6],[8,2,8,6],[26,2,26,4],[27,2,27,4],[1,1,2,6],[23,2,23,4],[24,2,24,4],[25,2,25,4],[9,5,10,5],[22,2,22,6],[4,1,4,6]]}
[]
[null,"Vergleich Leasing - Kreditkauf"]
[]
[]
[null,"Investition"]
[null,"Anschaffungswert",null,null,null,25000,"€",null,"Die Abschreibung erfolgt linear."]
[null,"Nutzungsdauer in Jahren",null,null,null,5]
[]
[null,"Leasingangebot","monatliche Raten",null,null,null,null,null,"Tragen Sie die Eingabewerte in die gelben Felder ein. Bei unterschiedliche Leasingraten im Zeitablauf können Sie zunächst die Option \"veränderliche Raten\" aktivieren und unterschiedlichen Monatsraten für jedes Jahr eintragen."]
[null,2,null,null,null,null,"€"]
[]
[null,null,null,null,"1. Jahr",300,"€"]
[null,null,null,null,"2. Jahr",300,"€"]
[null,null,null,null,"3. Jahr",300,"€"]
[null,null,null,null,"4. Jahr",500,"€"]
[null,null,null,null,"5. Jahr",500,"€"]
[null,null,null,null,"6. Jahr",null,"€"]
[null,null,null,null,"7. Jahr",null,"€"]
[null,null,null,null,"8. Jahr",null,"€"]
[null,null,null,null,"9. Jahr",null,"€"]
[null,null,null,null,"10. Jahr",null,"€"]
[]
[null,"Kauf ","Kreditfinanzierung",null,null,null,null,null,"Der Kreditbedarf wird automatisch berechnet. Eigene Mittel vermindern, eine Kreditauszahlung unter 100% erhöht den Kreditbedarf. Die Tilgung erfolgt in Form eines Abzahlungsdarlehens."]
[null,null,"eigene Mittel",null,null,5000,"€"]
[null,null,"Kreditauszahlung in %",null,null,98,"%"]
[null,null,"Kreditbedarf",null,null,{"$f":"ROUND(((F6-F24)*100)/F25,2)","v":20408.16},"€"]
[null,null,"Zinssatz",null,null,2.5,"%"]
[null,null,"Kreditlaufzeit in Jahren",null,null,5]

{"sheet":"Auswertung","index":1,"n_rows":16,"n_cols":13,"rows_kept":16,"cut":false,"hidden":false,"merged":[[8,11,11,11],[3,2,3,7],[3,9,3,10],[1,1,1,11],[5,11,7,11]]}
[]
[null,"Ergebnisauswertung"]
[]
[null,null,"Kauf",null,null,null,null,null,"Leasing","Differenz Leasing-Kauf",null,"Leasing ist günstiger"]
[null,"Jahr","eigene Mittel","Tilgung","Zinsen","Auszahlungen","Abschreibung","Aufwand","Jahresrate","Auszahlungen","Aufwand","Kreditkauf ist günstiger","Restschuld"]
[null,1,{"$f":"Steuerung!F24","v":5000},{"$f":"IF(M6>=0.01,Steuerung!$F$26/Steuerung!$F$28,0)","v":4081.6320000000001},{"$f":"IF(D6=0,0,Steuerung!$F$26*Steuerung!$F$27/100)","v":510.20400000000001},{"$f":"IF(D6=0,0,SUM(C6:E6))","v":9591.8359999999993},{"$f":"Steuerung!$F$6/Steuerung!$F$7","v":5000},{"$f":"IF(G6=0,0,E6+G6)","v":5510.2039999999997},{"$f":"IF(Steuerung!$F$7>=B6,IF(Steuerung!$B$10=1,Steuerung!$F$10*12,Steuerung!F12*12),0)","v":3600},{"$f":"I6-F6","v":-5991.8359999999993},{"$f":"I6-H6","v":-1910.2039999999997},{"$f":"IF(K16>=0,CONCATENATE(\"Der Aufwand beim Kreditkauf ist um \",K16,\" Euro niedriger als beim Leasing.\"),CONCATENATE(\"Der Aufwand beim Leasing ist um \",K16*-1, \" Euro niedriger als beim Kreditkauf.\"))","v":"Der Aufwand beim Leasing ist um 3730,61 Euro niedriger als beim Kreditkauf."},{"$f":"Steuerung!F26","v":20408.16}]
[null,2,null,{"$f":"IF(M7>=0.01,Steuerung!$F$26/Steuerung!$F$28,0)","v":4081.6320000000001},{"$f":"IF(D7=0,0,(Steuerung!$F$26-D6)*Steuerung!$F$27/100)","v":408.16320000000002},{"$f":"IF(D7=0,0,SUM(C7:E7))","v":4489.7952000000005},{"$f":"IF(B7*Steuerung!$F$6/Steuerung!$F$7>Steuerung!$F$6,0,Steuerung!$F$6/Steuerung!$F$7)","v":5000},{"$f":"IF(G7=0,0,E7+G7)","v":5408.1632},{"$f":"IF(Steuerung!$F$7>=B7,IF(Steuerung!$B$10=1,Steuerung!$F$10*12,Steuerung!F13*12),0)","v":3600},{"$f":"I7-F7","v":-889.79520000000048},{"$f":"I7-H7","v":-1808.1632},null,{"$f":"M6-D6","v":16326.528}]
[null,3,null,{"$f":"IF(M8>=0.01,Steuerung!$F$26/Steuerung!$F$28,0)","v":4081.6320000000001},{"$f":"IF(D8=0,0,(Steuerung!$F$26-SUM(D6:D7))*Steuerung!$F$27/100)","v":306.12240000000003},4387.7543999999998,{"$f":"IF(B8*Steuerung!$F$6/Steuerung!$F$7>Steuerung!$F$6,0,Steuerung!$F$6/Steuerung!$F$7)","v":5000},5306.1224000000002,{"$f":"IF(Steuerung!$F$7>=B8,IF(Steuerung!$B$10=1,Steuerung!$F$10*12,Steuerung!F14*12),0)","v":3600},-787.75439999999981,-1706.1224000000002,null,{"$f":"M7-D7","v":12244.896000000001}]
[null,4,null,{"$f":"IF(M9>=0.01,Steuerung!$F$26/Steuerung!$F$28,0)","v":4081.6320000000001},{"$f":"IF(D9=0,0,(Steuerung!$F$26-SUM(D6:D8))*Steuerung!$F$27/100)","v":204.08159999999995},4285.7136,{"$f":"IF(B9*Steuerung!$F$6/Steuerung!$F$7>Steuerung!$F$6,0,Steuerung!$F$6/Steuerung!$F$7)","v":5000},5204.0815999999995,{"$f":"IF(Steuerung!$F$7>=B9,IF(Steuerung!$B$10=1,Steuerung!$F$10*12,Steuerung!F15*12),0)","v":6000},1714.2864,795.91840000000047,{"$f":"IF(J16>=0,CONCATENATE(\"Die Liquidität wird beim Kreditkauf um \",J16,\" Euro weniger belastet als beim Leasing.\"),CONCATENATE(\"die Liquidität wird beim Leasing um \",J16*-1,\" Euro weniger belastet als beim Kreditkauf.\"))","v":"die Liquidität wird beim Leasing um 4138,77 Euro weniger belastet als beim Kreditkauf."},8163.264000000001]
[null,5,null,{"$f":"IF(M10>=0.01,Steuerung!$F$26/Steuerung!$F$28,0)","v":4081.6320000000001},{"$f":"IF(D10=0,0,(Steuerung!$F$26-SUM(D6:D9))*Steuerung!$F$27/100)","v":102.04079999999998},4183.6728000000003,{"$f":"IF(B10*Steuerung!$F$6/Steuerung!$F$7>Steuerung!$F$6,0,Steuerung!$F$6/Steuerung!$F$7)","v":5000},5102.0407999999998,{"$f":"IF(Steuerung!$F$7>=B10,IF(Steuerung!$B$10=1,Steuerung!$F$10*12,Steuerung!F16*12),0)","v":6000},1816.3271999999997,897.95920000000024,null,4081.632000000001]
[null,6,null,{"$f":"IF(M11>=0.01,Steuerung!$F$26/Steuerung!$F$28,0)","v":0},{"$f":"IF(D11=0,0,(Steuerung!$F$26-SUM(D6:D10))*Steuerung!$F$27/100)","v":0},0,{"$f":"IF(B11*Steuerung!$F$6/Steuerung!$F$7>Steuerung!$F$6,0,Steuerung!$F$6/Steuerung!$F$7)","v":0},0,{"$f":"IF(Steuerung!$F$7>=B11,IF(Steuerung!$B$10=1,Steuerung!$F$10*12,Steuerung!F17*12),0)","v":0},0,0,null,0]
[null,7,null,{"$f":"IF(M12>=0.01,Steuerung!$F$26/Steuerung!$F$28,0)","v":0},{"$f":"IF(D12=0,0,(Steuerung!$F$26-SUM(D6:D11))*Steuerung!$F$27/100)","v":0},0,{"$f":"IF(B12*Steuerung!$F$6/Steuerung!$F$7>Steuerung!$F$6,0,Steuerung!$F$6/Steuerung!$F$7)","v":0},0,{"$f":"IF(Steuerung!$F$7>=B12,IF(Steuerung!$B$10=1,Steuerung!$F$10*12,Steuerung!F18*12),0)","v":0},0,0,null,0]
[null,8,null,{"$f":"IF(M13>=0.01,Steuerung!$F$26/Steuerung!$F$28,0)","v":0},{"$f":"IF(D13=0,0,(Steuerung!$F$26-SUM(D6:D12))*Steuerung!$F$27/100)","v":0},0,{"$f":"IF(B13*Steuerung!$F$6/Steuerung!$F$7>Steuerung!$F$6,0,Steuerung!$F$6/Steuerung!$F$7)","v":0},0,{"$f":"IF(Steuerung!$F$7>=B13,IF(Steuerung!$B$10=1,Steuerung!$F$10*12,Steuerung!F19*12),0)","v":0},0,0,null,0]
[null,9,null,{"$f":"IF(M14>=0.01,Steuerung!$F$26/Steuerung!$F$28,0)","v":0},{"$f":"IF(D14=0,0,(Steuerung!$F$26-SUM(D6:D13))*Steuerung!$F$27/100)","v":0},0,{"$f":"IF(B14*Steuerung!$F$6/Steuerung!$F$7>Steuerung!$F$6,0,Steuerung!$F$6/Steuerung!$F$7)","v":0},0,{"$f":"IF(Steuerung!$F$7>=B14,IF(Steuerung!$B$10=1,Steuerung!$F$10*12,Steuerung!F20*12),0)","v":0},0,0,null,0]
[null,10,null,{"$f":"IF(M15>=0.01,Steuerung!$F$26/Steuerung!$F$28,0)","v":0},{"$f":"IF(D15=0,0,(Steuerung!$F$26-SUM(D6:D14))*Steuerung!$F$27/100)","v":0},0,{"$f":"IF(B15*Steuerung!$F$6/Steuerung!$F$7>Steuerung!$F$6,0,Steuerung!$F$6/Steuerung!$F$7)","v":0},0,{"$f":"IF(Steuerung!$F$7>=B15,IF(Steuerung!$B$10=1,Steuerung!$F$10*12,Steuerung!F21*12),0)","v":0},0,0,null,0]
[null,"Summe",{"$f":"SUM(C6:C15)","v":5000},{"$f":"SUM(D6:D15)","v":20408.16},{"$f":"SUM(E6:E15)","v":1530.6120000000001},{"$f":"SUM(F6:F15)","v":26938.772000000001},{"$f":"SUM(G6:G15)","v":25000},{"$f":"IF(D16=\"\",\"\",E16+G16)","v":26530.612000000001},{"$f":"SUM(I6:I15)","v":22800},{"$f":"ROUND(I16-F16,2)","v":-4138.7700000000004},{"$f":"ROUND(I16-H16,2)","v":-3730.61}]

{"sheet":"Aufträge","index":2,"n_rows":56,"n_cols":9,"rows_kept":56,"cut":false,"hidden":false,"merged":[[1,1,2,3],[4,3,4,4]]}
[]
[null,"Arbeitsaufträge"]
[]
[]
["1.","Investitionssumme:",null,80000,null,"Kreditauszahlung",null,null,1]
[null,"Nutzungsdauer:",null,null,"10 Jahre","Kreditzins:",null,null,0.05]
[null,"monatliche Leasingraten:",null,null,875,"Kreditlaufzeit",null,null,"10 Jahre"]
["a.","Vergleichen Sie die Kosten bei Leasing und Kreditkauf."]
["b.","Erklären Sie Entwicklung der Differenzbeträge bei Auszahlungen und Aufwand."]
[]
["2.","Eine Investition über 140.000,00 € kann zu 30.000,00 € aus eigenen Mitteln finanziert"]
[null,"werden. Die Nutzungsdauer beträgt 8 Jahre. "]
[null,"Für den Restbetrag müsste ein Darlehen aufgenommen werden. Das Angebot der"]
[null,"Hausbank lautet: 98% Auszahlung, 4,2% Kreditzinszins, Rückzahlung über 6 Jahre."]
[null,"Alternativ zum Kreditkauf könnte eine Leasingvertrag über 8 Jahre abgeschlossen werden."]
[null,"Die monatlichen Leasingraten betragen in den ersten 4 Jahren 2.100,00 €. Ab dem fünften"]
[null,"Jahre sinken sie auf 1.500,00 €."]
[null,"Ermitteln Sie die günstigere Investitionsalternative."]
[]
["3.","Ein Unternehmen kann einen Multifunktionsdrucker, der eine Nutzungsdauer von 4 Jahren hat,"]
[null,"bei einem Büromaschinenhändler mit einer Monatsrate von 125,00 € leasen. "]
[null,"Beim Kauf des Gerätes müssten 5.700,00 € gezahlt werden. Dafür müsste ein Kredit "]
[null,"der zu 97% ausgezahlt wird in 4 Jahren getilgt werden. Der Kredit ist mit 4,6% zu verzinsen."]
[null,"Zu welcher Alternative raten Sie dem Unternehmen?"]
[]
["4.","Eine Investition über 57.000,00 € und einer Nutzungsdauer von 4 Jahren kann mit 15.000,00 €"]
[null,"aus eigenen Mitteln finanziert werden. Über den Restbetrag muss ein Kredit aufgenommen"]
[null,"werden der zu 96% ausgezahlt wird. Der Kreditzinssatz betägt 5,9%. Die Rückzahlung"]
[null,"wird über die Nutzungsdauer der Anlage verteilt."]
[null,"Eine Leasinggesellschaft macht ein Angebot mit einer monatlichen Leasingrate von"]
[null,"1.340,00 € über eine Laufzeit von 4 Jahren."]
["a.","Welche Investitionsalternative soll gewählt werden, wenn die Liquidität des "]
[null,"Unternehmens bei Investitionsentscheidungen ausschlaggebend ist?"]
["b.","Bei welcher Alternative ist der Aufwand geringer?"]
[]
["5.","Für eine Investition über 240.000,00 € mit einer Nutzungsdauer von 8 Jahren stehen"]
[null,"die folgenden Finanzierungsalternativen zur Auswahl:"]
[null,"*  Finanzierung über ein Darlehen mit einer Auszahlung von 98%."]
[null,"   Das Darlehen ist in 6 Jahren zurückzuzahlen und mit 4,5% zu verzinsen."]
[null,"*  Eine Leasinggesellschaft würde die gleiche Anlage für 3 Jahre aufstellen, und zunächst"]
[null,"   eine monatliche Leasingrate von 2.400,00 € in Rechnung stellen."]
[null,"   Nach drei Jahren würde die Anlage durch eine Maschine ersetzt, die zur Zeit noch in"]
[null,"   der Entwicklung ist. Allerdings würde die Leasingrat dann auf 3.300,00 € steigen."]
["a.","Ermitteln Sie die günstigere Investitionsalternative."]
["b.","Welche Gründe sprechen für das Angebot der Leasinggesellschaft?"]
[]
["6.","Eine Investition über 480.000,00 € und einer Nutzungsdauer von 10 Jahren kann durch"]
[null,"einen Kreditkauf oder mit einen Leasingvertrag finanziert werden."]
[null,"Die Leasingraten betragen in den ersten 3 Jahren 5.600,00 €, dann mindern sie sich in"]
[null,"jedem der folgenden Jahre um 200,00 €."]
[null,"Zum Kauf der Maschine stehen 60.000,00 € eigene Mittel zur Verfügung. Der Restbetrag"]
[null,"muss über ein Darlehen finanziert werden, das zu 97% ausgezahlt wird."]
[null,"Das Darlehen wird in 10 Jahren getilgt und muss zu 4,8% verzinst werden."]
["a.","Treffen Sie eine Investitionsentscheidung."]
["b.","Erklären Sie die Unterschiede bei den Auszahlungs- und Aufwanddifferenzen des ersten "]
[null,"Investitionsjahres im Vergleich zu den Folgejahren."]